Cogmind - Beta 13 @@@ ROGUE MODE // 2024.06.15 @ 13:23:31 Player: SovietPaperclip Result: Destroyed by D-53 Grenadier with Mini Grenade Launcher Performance ------------- Evolutions (1) 500 Regions Visited (4) 800 Robots Destroyed (31) 155 Value Destroyed (379) 379 Prototype IDs (1) 20 Alien Tech Used (0) 0 Bonus (-74) -74 TOTAL SCORE: 1780 Bonus ------- Follower Combat Kills 58 Friendly Fire -132 Cogmind --------- Core Integrity 0/400 Matter 55/300 Energy 67/100 System Corruption 10% Temperature Cool (0) Movement Treading (240) Ox1 Location -9/Mines Parts ------- > --- POWER (1) -------- (None) > --- PROPULSION (3) --- Light Treads > --- UTILITY (3) ------ Large Storage Unit > --- WEAPON (2) ------- Light Assault Rifle > --- INVENTORY (15) --- Fission Core Improved Heat Sink Small Storage Unit High-capacity Matter Pod (200) Machine Analyzer Experimental Sensor Array Signal Interpreter Improved Targeting Computer Tractor Beam Peak State ------------ > --- POWER ------------ Light Angular Momentum Engine > --- PROPULSION ------- Light Treads Light Treads Light Treads > --- UTILITY ---------- Large Storage Unit Hardened Light Armor Plating Hardened Light Armor Plating > --- WEAPON ----------- Light Assault Rifle Light Assault Rifle > --- INVENTORY -------- Light Treads Light Treads Improved Heat Sink Small Storage Unit High-capacity Matter Pod Machine Analyzer Experimental Sensor Array Signal Interpreter Improved Targeting Computer Tractor Beam Light Assault Rifle Autogun Grenade Launcher [Rating: 17] Favorites ----------- Power Ion Engine Engine Ion Engine Propulsion Light Treads Treads Light Treads Utility ECM Suite Device ECM Suite Storage Large Storage Unit Protection Hardened Light Armor Plating Weapon Light Assault Rifle Ballistic Gun Light Assault Rifle Launcher Grenade Launcher Build | -11 -10 -10 -9 -9 ------- Run | Yrd Mat Min Mat Min Slots Evolved 2 | . . . 2 . Power . | . . . . . Propulsion 1 | . . . 1 . Utility 1 | . . . 1 . Weapon . | . . . . . Parts Attached 25 | 6 2 . 3 14 Power 2 | 1 . . . 1 Engine 2 | 1 . . . 1 Core . | . . . . . Reactor . | . . . . . Propulsion 5 | 2 . . 1 2 Treads 5 | 2 . . 1 2 Leg . | . . . . . Wheel . | . . . . . Hover . | . . . . . Flight . | . . . . . Utility 5 | 1 2 . 1 1 Device 1 | . 1 . . . Storage 2 | 1 1 . . . Processor . | . . . . . Hackware . | . . . . . Protection 2 | . . . 1 1 Artifact . | . . . . . Weapon 13 | 2 . . 1 10 Energy Gun . | . . . . . Energy Cannon . | . . . . . Ballistic Gun 9 | 2 . . 1 6 Ballistic Cannon . | . . . . . Launcher 4 | . . . . 4 Special Weapon . | . . . . . Impact Weapon . | . . . . . Slashing Weapon . | . . . . . Piercing Weapon . | . . . . . Special Melee Weapon . | . . . . . Unidentified Prototypes . | . . . . . Parts Lost 14 | . . . 1 13 Power 2 | . . . . 2 Propulsion 4 | . . . . 4 Utility 3 | . . . . 3 Weapon 5 | . . . 1 4 Highest Loss Streak 9 | . . . 1 9 To Critical Strikes . | . . . . . Average Slot Usage (%) 95 | . 98 100 91 93 Engine 12 | . 14 14 11 10 Treads 27 | . 28 28 26 31 Device 11 | . 13 14 11 5 Storage 12 | . 14 14 11 11 Protection 6 | . . . 10 12 Ballistic Gun 24 | . 28 28 22 19 Naked Turns . | . . . . . Heaviest Build 43 | 13 30 30 35 43 Greatest Support 60 | 40 40 40 60 60 Greatest Overweight (x) . | . . . . . Average Overweight (x) . | . . . . . Largest Inventory Capacity 15 | 8 15 15 15 15 Average Capacity 13 | 7 9 15 15 15 Most Carried 15 | 1 8 11 15 15 Average Carried 9 | . 4 9 12 14 Final Capacity 15 | 8 15 15 15 15 Final Carried 15 | 1 8 10 15 9 Class Distribution -------------------- 100% | Mutant Dominant Class ---------------- Mutant | -10/Materials Mutant | -10/Mines Mutant | -9/Materials Mutant | -9/Mines Resources | -11 -10 -10 -9 -9 ----------- Run | Yrd Mat Min Mat Min Matter Collected 688 | 219 87 238 114 30 Remotely . | . . . . . Salvage Created 639 | . 129 . 453 57 Parts 59 | . 14 . 38 7 Haulers Intercepted 3 | . . . 3 . Recyclers Shooed 2 | . . . 1 1 Parts Field Recycled . | . . . . . Retrieved Matter . | . . . . . Parts Self-Destructed . | . . . . . Prevented . | . . . . . Kills | -11 -10 -10 -9 -9 ------- Run | Yrd Mat Min Mat Min Combat Hostiles Destroyed 38 | . 5 . 15 18 Guns 21 | . 5 . 15 1 AOE 17 | . . . . 17 Classes Destroyed 8 | . 3 . 3 2 Worker 1 | . . . . 1 Hauler 3 | . . . 3 . Mechanic 1 | . 1 . . . Operator 1 | . . . 1 . Swarmer 22 | . 3 . 14 5 Grunt 2 | . 2 . . . Sentry 1 | . . . 1 . Assembled 13 | . . . . 13 Best Kill Streak 15 | . 3 . 15 13 Combat Bots Only 14 | . 3 . 14 13 Max Kills in Single Turn 4 | . 2 . 1 4 Gunslinging . | . . . . . Exploded 4 | . . . . 4 Melee . | . . . . . Uniques/NPCs Destroyed . | . . . . . Combat | -11 -10 -10 -9 -9 -------- Run | Yrd Mat Min Mat Min Hostile Shots Fired 121 | . 11 . 56 54 Missed 27 | . 3 . 14 10 Damage Taken 2219 | . 72 . 422 1725 Core 424 | . 10 . 92 322 Absorbed by Shields . | . . . . . Core Remaining (%) 98 | 100 . 96 . . Volleys Fired 76 | . 16 . 43 17 Largest 2 | . 2 . 2 2 Hottest 53 | . 40 . 40 53 Shots Fired 147 | . 32 . 86 29 Gun 137 | . 32 . 86 19 Cannon . | . . . . . Launcher 10 | . . . . 10 Special . | . . . . . Kinetic 137 | . 32 . 86 19 Thermal . | . . . . . Explosive 10 | . . . . 10 Electromagnetic . | . . . . . Robot Hit Streak 10 | . 5 . 10 6 Robot Miss Streak 2 | . 2 . 2 1 Penetration Max . | . . . . . Secondary Targets 1 | . . . 1 . Max Gunslinging Chain 1 | . . . 1 . Shots Hit Robots 96 | . 20 . 63 13 Core Hits 88 | . 11 . 32 45 Critical Kills 1 | . . . 1 . Critical Parts Destroyed . | . . . . . Critical Strikes 1 | . . . 1 . Destroy 1 | . . . 1 . Melee Attacks . | . . . . . Impact . | . . . . . Slashing . | . . . . . Piercing . | . . . . . Sneak Attacks . | . . . . . Combat Hostiles . | . . . . . Follow-up Attacks . | . . . . . Damage Inflicted 2128 | . 211 . 560 1357 Guns 878 | . 211 . 560 107 Cannons . | . . . . . Explosions 1250 | . . . . 1250 Melee . | . . . . . Ramming . | . . . . . Kinetic 878 | . 211 . 560 107 Thermal . | . . . . . Explosive 1250 | . . . . 1250 Electromagnetic . | . . . . . Impact . | . . . . . Slashing . | . . . . . Piercing . | . . . . . Highest Corruption 10 | . . . 1 10 Average Corruption 2 | . . . 1 5 Corruption Purged . | . . . . . Corruption Blocked . | . . . . . Effects 8 | . . . 3 5 Message Errors 3 | . . . . 3 Matter Fused 4 | . . . 2 2 Misfires 1 | . . . 1 . Overload Shots . | . . . . . Overflow Damage 25 | . . . . 25 Projectiles . | . . . . . Explosions 25 | . . . . 25 Melee . | . . . . . Knockbacks . | . . . . . Impact . | . . . . . Kinetic . | . . . . . Secondary . | . . . . . Self-Inflicted Damage 44 | . . . . 44 Shots 4 | . . . . 4 Rammed . | . . . . . Targets Rammed . | . . . . . Kicked . | . . . . . Crushed . | . . . . . Highest Temperature 125 | . 6 . 13 125 Average Temperature 15 | . 6 . 4 47 Received Heat Transfer 144 | . 12 . 54 78 Siege Activations . | . . . . . Robots Corrupted . | . . . . . Combat Hostiles . | . . . . . Parts Fried . | . . . . . Impact Corruptions . | . . . . . Robots Melted . | . . . . . Combat Hostiles . | . . . . . Parts Melted . | . . . . . Heat Transferred . | . . . . . Parts Sabotaged . | . . . . . Parts Stolen . | . . . . . Parts Stripped . | . . . . . Power Chain Reactions . | . . . . . Alert | -11 -10 -10 -9 -9 ------- Run | Yrd Mat Min Mat Min Peak Influence 400 | . 145 . 400 275 Initial 93 | . . . . 93 Average 117 | . 77 . 192 185 Maximum Alert Level 2 | . . . 2 1 Low Security (%) 68 | 100 100 100 37 41 Level 1 28 | . . . 55 58 Level 2 2 | . . . 6 . Level 3 . | . . . . . Level 4 . | . . . . . Level 5 . | . . . . . High Security . | . . . . . Max Security . | . . . . . Squads Dispatched 5 | . 1 1 2 1 Investigation . | . . . . . Extermination . | . . . . . Reinforcement 4 | . 1 . 2 1 Assault 1 | . . 1 . . Garrison . | . . . . . Intercept . | . . . . . Searches Triggered . | . . . . . Construction Impeded 1 | . . . . 1 Haulers Reinforced . | . . . . . Active Scanning Responses . | . . . . . Cargo Convoy Interrupts . | . . . . . Stealth | -11 -10 -10 -9 -9 --------- Run | Yrd Mat Min Mat Min Distress Signals 1 | . . . 1 . Communications Jammed . | . . . . . Distress Signals . | . . . . . Times Spotted 58 | . 9 . 23 26 Peak Tracking Total 11 | . 4 1 11 10 Tactical Retreats 5 | . 1 . 4 . Traps | -11 -10 -10 -9 -9 ------- Run | Yrd Mat Min Mat Min Traps Triggered 2 | . . . 2 . Indirectly . | . . . . . Trap Hack Attempts . | . . . . . Triggered . | . . . . . Disarmed . | . . . . . Reprogrammed . | . . . . . Reused . | . . . . . Traps Extracted . | . . . . . Installed . | . . . . . Triggered . | . . . . . Machines | -11 -10 -10 -9 -9 ---------- Run | Yrd Mat Min Mat Min Machines Disabled 1 | . . . . 1 Max in Single Turn 1 | . . . . 1 Machines Repaired . | . . . . . Machines Dismantled . | . . . . . Machines Sabotaged . | . . . . . Overloaded Fab Kills . | . . . . . Hacking | -11 -10 -10 -9 -9 --------- Run | Yrd Mat Min Mat Min Machines Accessed 6 | . 3 . 3 . Terminals 5 | . 3 . 2 . Fabricators . | . . . . . Repair Stations . | . . . . . Recycling Units . | . . . . . Scanalyzers 1 | . . . 1 . Garrison Access . | . . . . . Total Hacks 13 | . 7 . 6 . Successful 8 | . 3 . 5 . Failed 4 | . 3 . 1 . Catastrophic 2 | . 2 . . . Database Lockouts 1 | . 1 . . . Manual 8 | . 4 . 4 . Terminals 11 | . 7 . 4 . Fabricators . | . . . . . Repair Stations . | . . . . . Recycling Units . | . . . . . Scanalyzers 2 | . . . 2 . Garrison Access . | . . . . . Terminal Hacks 3 | . 2 . 1 . Part Schematic 2 | . 1 . 1 . Branch Access Points 1 | . 1 . . . Fabricator Hacks . | . . . . . Repair Station Hacks . | . . . . . Recycling Unit Hacks . | . . . . . Scanalyzer 2 | . . . 2 . Insert Component 1 | . . . 1 . Analyze 1 | . . . 1 . Garrison Access Hacks . | . . . . . Unauthorized Hacks 3 | . 1 . 2 . Terminals 3 | . 1 . 2 . Botnet 3 | . 1 . 2 . Fabricators . | . . . . . Repair Stations . | . . . . . Recycling Units . | . . . . . Scanalyzers . | . . . . . Garrison Access . | . . . . . Data Cores Recovered . | . . . . . Used . | . . . . . Hacking Detections 4 | . 2 . 2 . Full Trace Events . | . . . . . Feedback Events . | . . . . . Feedback Blocked . | . . . . . Robot Schematics Acquired . | . . . . . Robots Built . | . . . . . Authchips . | . . . . . Time . | . . . . . Total Robot Build Rating . | . . . . . Part Schematics Acquired 3 | . 1 . 2 . Parts Built . | . . . . . Authchips . | . . . . . Time . | . . . . . Total Part Build Rating . | . . . . . Parts Repaired . | . . . . . Time . | . . . . . Parts Recycled . | . . . . . Recycled Matter . | . . . . . Retrieved Matter . | . . . . . Retrieved Components . | . . . . . Parts Scanalyzed 1 | . . . 1 . Part Schematics Acquired 1 | . . . 1 . Parts Damaged . | . . . . . Bothacking | -11 -10 -10 -9 -9 ------------ Run | Yrd Mat Min Mat Min Used RIF Installer . | . . . . . Robots Hacked . | . . . . . Non-combat . | . . . . . Combat . | . . . . . Robot Hacks Applied . | . . . . . Relay Couplers Released . | . . . . . Fabnet Peak Effective % . | . . . . . Robots Rewired . | . . . . . Allies Hacked . | . . . . . Hacks Repelled . | . . . . . Allies | -11 -10 -10 -9 -9 -------- Run | Yrd Mat Min Mat Min Total Allies 2 | . . 1 . 1 Largest Group 1 | . . 1 1 1 Highest-Rated Group 31 | . . 31 31 31 Highest-Rated Ally 31 | . . 31 31 31 Total Orders . | . . . . . Ally Attacks 12 | . . . 4 8 Total Damage 167 | . . . 62 105 Kills 4 | . . . 1 3 Allies Corrupted . | . . . . . Allies Melted . | . . . . . Intel | -11 -10 -10 -9 -9 ------- Run | Yrd Mat Min Mat Min Robot Analysis Total . | . . . . . Derelict Logs Recovered 1 | . . 1 . . Drone Launches . | . . . . . Drone Recoveries . | . . . . . Exploration | -11 -10 -10 -9 -9 ------------- Run | Yrd Mat Min Mat Min Turns Passed 1714 | 95 435 302 598 284 Spaces Moved 891 | 56 236 187 272 140 Core 3 | 3 . . . . Treads 888 | 53 236 187 272 140 Legs . | . . . . . Wheels . | . . . . . Hover . | . . . . . Flight . | . . . . . Fastest Speed 50 | 50 160 160 160 160 Average Speed 159 | 154 160 160 160 160 Slowest Speed 160 | 160 160 160 160 160 Overloaded Moves . | . . . . . Propulsion Burnouts . | . . . . . Robots Hopped . | . . . . . Cave-ins Triggered 1 | . . . . 1 Exploration Rate (%) 33 | 4 47 48 28 38 Regions Visited 4 Branch Regions 2 Pre-discovered Areas . | . . . . . Known Exits Taken 1 | . 1 . . . Unknown Exits Taken 3 | 1 . 1 1 . Scrap Searched . | . . . . . Spaces Dug 26 | . . . . 26 Terrain Destroyed 50 | . . . . 50 Melee . | . . . . . Projectile . | . . . . . AOE 50 | . . . . 50 Terrain Rammed . | . . . . . Walls Destroyed . | . . . . . Machines Disabled . | . . . . . Actions | -11 -10 -10 -9 -9 --------- Run | Yrd Mat Min Mat Min Total 1052 | 62 264 190 363 173 Wait 43 | . 5 . 37 1 Move 887 | 55 235 186 271 140 Hop . | . . . . . Pick Up 19 | 1 6 3 8 1 Fast Attach 8 | 6 1 . 1 . Attach 9 | . . . 2 7 Detach . | . . . . . Swap 8 | . 1 . . 7 Drop 2 | . . 1 1 . Fire 76 | . 16 . 43 17 Melee . | . . . . . Ram . | . . . . . Kick . | . . . . . Crush . | . . . . . Escape Stasis . | . . . . . Rewire . | . . . . . Trap . | . . . . . Miscellaneous . | . . . . . Route ------- -11/Scrapyard -10/Materials (discovered 2 exits: *Mat / *Min) -10/Mines -9/Materials (discovered 2 exits: [*Min] / Sto) -9/Mines History --------- Turn | Location | Event 2 | -11/Scrapyard | Met Revision 17 34 | -11/Scrapyard | Discovered new exit (range 15) 96 | -11/Scrapyard | Entered Materials 169 | -10/Materials | Identified exit to Mines 174 | -10/Materials | Discovered new exit (range 12) 301 | -10/Materials | Build established: Mutant 467 | -10/Materials | Central database locked down 531 | -10/Materials | Entered Mines 702 | -10/Mines | Found a damaged Exp. Sensor Array with a note attached 705 | -10/Mines | Found Prototype Device 778 | -10/Mines | Met a Derelict testing a Signal Generator 786 | -10/Mines | Found Signal Generator 821 | -10/Mines | Discovered new exit (range 6) 833 | -10/Mines | Entered Materials 833 | -9/Materials | Accompanied by 1 ally 833 | -9/Materials | Evolved 2 slots: Propulsion x1, Utility x1 834 | -9/Materials | Identified exit to Storage 1123 | -9/Materials | Destroyed 14 combat bots 1286 | -9/Materials | Discovered new exit (range 16) 1333 | -9/Materials | Identified Exp. Sensor Array 1431 | -9/Materials | Entered Mines 1449 | -9/Mines | A weapon hastily lodged in a ceiling crevice suddenly fell to the ground 1557 | -9/Mines | Escorted by a lone wolf Derelict 1586 | -9/Mines | Crushed by falling debris 1586 | -9/Mines | System corruption reached 10% 1636 | -9/Mines | Assembled infested the area 1641 | -9/Mines | Assisted by a Guerilla fighting off Assembled 1687 | -9/Mines | Core integrity fell below 50% 1695 | -9/Mines | Destroyed 13 combat bots 1701 | -9/Mines | Core integrity fell below 20% 1715 | -9/Mines | Destroyed by D-53 Grenadier with Mini Grenade Launcher Last Messages --------------- 01698_ U-05 Engineer builds a Wall. 01699_ The unstable cave ceiling collapses. 01699_ Lgt. Angular Momentum Engine destroyed. 01700_ Lgt. Treads destroyed. 01701_ 4UY77S2W<6Y9ULI1H1YJHGC,S#B5M 01702_ The unstable cave ceiling collapses. 01703_ U-05 Engineer builds a Wall. 01706_ The unstable cave ceiling collapses. 01706_ U-05 Engineer builds a Wall. 01708_ Plasma Injector explodes. 01710_ U-05 Engineer lays Concrete. 01711_ The unstable cave ceiling collapses. 01711_ Grenade Launcher destroyed. 01711_ U-05 Engineer lays Concrete. 01712_ U-05 Engineer builds a Wall. 01713_ The unstable cave ceiling collapses. 01713_ Lgt. Treads destroyed. 01713_ Lgt. Assault Rifle destroyed. 01713_ U-05 Engineer builds a Wall. 01715_ Autogun destroyed. Map ----- +----------------------------------------------------+ | ???????????# #####???????????? | | ???????????## ##???????????????? | | ???????????# "" ##????????????????? | | ???????????## ##?????????????????? | | ????????????# ##?????????????????? | | ????????????## ##????????????????? | | ????????????## ##???????????????? | | ???????????## ##??????????????? | | ???????????# #??????????????? | | ??????????## #??????????????? | | ?????#????# ## #??????????????? | | ????## ##?# "#### #??????????????? | | ????# # "%##### ##??????????????? | | ????# " ####???????????????? | | ????# # #???????????????? | | ????# # %###u ##??????????????? | | ????########## ##?# #?????????? | | ????????????# # # ## ### #?????? | | ????????????# ## #?????? | | ???????????## # d u #????????? | | ????######## d #????????? | | ??# #???????? | | ??# ; #???????? | | ??? #### #" ##???????? | | ????????# ### #????????? | | ????????# @ ####?? #????????? | | ????????# ###?????? #???????? | | ????????# ?????????????????? | | ????????## ## ??????????????? | | ?????????## ##??? ????????????? | | ??????????# ## #??????? #??????????? | | ??????????## #? #???????????????????? | | ???????????# #??#???????????????????? | | ??????????? $#??????????????????????? | | ???????????# ???????????????????????? | | ???????????# ???????????????????????? | | ???????????# ???????????????????????? | | ??????????? ???????????????????????? | | ???????????###???????????????????????? | | ?????????????????????????????????????? | | ?????????????????????????????????????? | | ?????????????????????????????????????? | | ?????????????????????????????????????? | | ?????????????????????????????????????? | | ?????????????????????????????????????? | | ?????????????????????????????????????? | | ?????????????????????????????????????? | | ?????????????????????????????????????? | | ?????????????????????????????????????? | | ?????????????????????????????????????? | +----------------------------------------------------+ Best States ------------- Heat Dissipation 28 Energy Generation 18 Energy Capacity 250 Matter Stores 300 Matter Capacity 300 Sight Range 16 Terrain Scan Density 10 ECM Strength 1 Armor Coverage 300 Evasion (%) 40 Recoil Reduction 3 Item Schematics ----------------- Cargo Storage Unit | -10/Materials | Hacked Arm. Wheel | -9/Materials | Hacked Exp. Sensor Array | -9/Materials | Scanalyzed Robot Schematics ------------------ None Fabricated ------------ Nothing Alien Tech Used ----------------- None Achievements -------------- None Challenges ------------ None Game ------ Seed BiometalGammaPrototype Manual? 0 Play Time 00:14:05 Cumulative 127.5 hours Start 2024.06.15 @ 13:11:53 End 2024.06.15 @ 13:23:31 Sessions 1 Manual Loads 0 Difficulty Rogue Special Mode None Game No. 173 Rogue 173 Adventurer 0 Explorer 0 Win Type - Total 1 Types 1/0/0/0/0/0/0/0/0 Lore% 50 Gallery% 55 Achievement% 51 Wizard Run 0 Options --------- Layout 1 ASCII 0 Keyboard 0 Movement Mouse Keybinds 0 Fullscreen 1 Font 32/SmallcapsGlow Map View 50x35 Zoom Use 0% Tactical HUD 1 Map Filters NONE Filters NONE Steam 1 RUN: db18c731-5a36-408d-bbfc-c462f9fe9c8c